fUST/lending_fUST_20250811
["ID","MTS","AMOUNT","RATE_DAILY","PERIOD"]
[378453917,1754871044433,-460.0,0.00020351,2]
[378453919,1754871044444,-460.0,0.00020351,2]
[378453921,1754871044453,-460.0,0.00020351,2]
[378453923,1754871044463,-461.9269792,0.00020351,2]
[378453925,1754871044472,-460.0,0.00020351,2]
[378453927,1754871044482,-460.0,0.00020351,2]
[378453929,1754871044491,-460.0,0.00020351,2]
[378453931,1754871044504,-460.0,0.00020351,2]
[378453932,1754871044513,-460.0,0.00020351,2]
[378453935,1754871044523,-462.8130774,0.00020351,2]
[378453937,1754871044534,-421.03225435,0.00020351,2]
[378453939,1754871044543,-460.0,0.00020351,2]
[378453941,1754871044553,-460.0,0.00020351,2]
[378453943,1754871044562,-460.0,0.00020351,2]
[378453945,1754871044572,-460.0,0.00020351,2]
[378453947,1754871044581,-460.0,0.00020351,2]
[378453949,1754871044591,-460.0,0.00020351,2]
[378453951,1754871044601,-460.0,0.00020351,2]
[378453953,1754871044610,-464.21183541,0.00020351,2]
[378453955,1754871044619,-460.0,0.00020351,2]
[378453957,1754871044628,-460.0,0.00020351,2]
[378453959,1754871044638,-460.0,0.00020351,2]
[378453961,1754871044648,-460.0,0.00020351,2]
[378453962,1754871044657,-464.84947252,0.00020351,2]
[378453964,1754871044667,-460.0,0.00020351,2]
[378453966,1754871044676,-460.0,0.00020351,2]
[378453968,1754871044685,-460.0,0.00020351,2]
[378453970,1754871044695,-573.89,0.00020351,2]
[378453973,1754871044704,-460.0,0.00020351,2]
[378453974,1754871044714,-460.0,0.00020351,2]
[378453976,1754871044723,-153.913521,0.00020351,2]
[378453978,1754871044733,-460.0,0.00020351,2]
[378453981,1754871044743,-460.0,0.00020351,2]
[378453983,1754871044753,-460.0,0.00020351,2]
[378453985,1754871044762,-461.29939314,0.00020351,2]
[378453987,1754871044771,-1491.96,0.00020351,2]
[378453989,1754871044780,-460.0,0.00020351,2]
[378453991,1754871044790,-460.0,0.00020351,2]
[378453993,1754871044799,-460.0,0.00020351,2]
[378453995,1754871044809,-184.10729758,0.00020351,2]
[378453997,1754871044818,-460.0,0.00020351,2]
[378453999,1754871044828,-896.57,0.00020351,2]
[378454001,1754871044837,-334.953508,0.00020352,2]
[378454003,1754871044846,-334.953508,0.00020352,2]
[378454004,1754871044855,-460.0,0.00020352,2]
[378454006,1754871044865,-281.26,0.00020352,2]
[378454009,1754871044875,-460.0,0.00020352,2]
[378454011,1754871044884,-460.0,0.00020352,2]
[378454013,1754871044893,-334.953508,0.00020353,2]
[378454014,1754871044902,-334.953508,0.00020353,2]
[378454016,1754871044912,-334.953508,0.00020353,2]
[378454018,1754871044921,-334.953508,0.00020354,2]
[378454021,1754871044931,-334.953508,0.00020361,2]
[378454022,1754871044940,-500.0,0.00020423,2]
[378454025,1754871044950,-460.0,0.00020424,2]
[378454027,1754871044959,-280.0,0.00020454,2]
[378454028,1754871044969,-334.953508,0.00020501,2]
[378454031,1754871044979,-409.93851068,0.0002051,2]
[378454033,1754871044988,-460.0,0.00020511,2]
[378454035,1754871044997,-776.58,0.00020511,2]
[378454036,1754871045007,-514.52,0.00020511,2]
[378454038,1754871045016,-1130.59,0.00020511,2]
[378454041,1754871045026,-334.953508,0.00020512,2]
[378454042,1754871045036,-460.0,0.00020521,2]
[378454044,1754871045045,-460.0,0.00020521,2]
[378454047,1754871045054,-460.0,0.00020521,2]
[378454049,1754871045064,-460.0,0.00020521,2]
[378454050,1754871045073,-179.73141425,0.00020521,2]
[378454052,1754871045082,-460.0,0.00020521,2]
[378454054,1754871045093,-460.0,0.00020521,2]
[378454056,1754871045103,-460.0,0.00020521,2]
[378454059,1754871045113,-460.0,0.00020521,2]
[378454060,1754871045122,-460.0,0.00020521,2]
[378454063,1754871045132,-460.0,0.00020521,2]
[378454064,1754871045142,-460.0,0.00020521,2]
[378454066,1754871045151,-161.27310143,0.00020521,2]
[378454069,1754871045161,-460.0,0.00020521,2]
[378454071,1754871045170,-460.0,0.00020521,2]
[378454073,1754871045179,-460.0,0.00020521,2]
[378454074,1754871045189,-460.0,0.00020521,2]
[378454077,1754871045199,-460.0,0.00020521,2]
[378454079,1754871045210,-460.0,0.00020521,2]
[378454081,1754871045219,-460.0,0.00020521,2]
[378454082,1754871045228,-321.88817901,0.00020521,2]
[378454084,1754871045238,-460.0,0.00020521,2]
[378454086,1754871045248,-460.0,0.00020521,2]
[378454088,1754871045257,-460.0,0.00020521,2]
[378454090,1754871045266,-460.0,0.00020521,2]
[378454092,1754871045275,-460.0,0.00020521,2]
[378454094,1754871045284,-460.0,0.00020521,2]
[378454096,1754871045293,-575.89,0.00020521,2]
[378454099,1754871045303,-460.0,0.00020521,2]
[378454100,1754871045313,-460.0,0.00020521,2]
[378454102,1754871045322,-460.0,0.00020521,2]
[378454104,1754871045331,-460.0,0.00020521,2]
[378454106,1754871045341,-460.0,0.00020521,2]
[378454109,1754871045350,-460.0,0.00020521,2]
[378454111,1754871045360,-460.0,0.00020521,2]
[378454112,1754871045372,-460.0,0.00020521,2]
[378454115,1754871045382,-463.5366162,0.00020521,2]
[378454116,1754871045391,-376.87757587,0.00020521,2]
[378454118,1754871045400,-185.27794762,0.00020521,2]
[378454121,1754871045411,-460.0,0.00020521,2]
[378454122,1754871045420,-460.0,0.00020521,2]
[378454124,1754871045429,-460.0,0.00020521,2]
[378454126,1754871045439,-460.0,0.00020521,2]
[378454128,1754871045450,-460.0,0.00020521,2]
[378454131,1754871045459,-460.0,0.00020521,2]
[378454133,1754871045469,-460.0,0.00020521,2]
[378454134,1754871045478,-158.01885458,0.00020521,2]
[378454136,1754871045487,-460.0,0.00020521,2]
[378454139,1754871045498,-460.0,0.00020521,2]
[378454141,1754871045508,-226.47541085,0.00020522,2]
[378454143,1754871045518,-460.0,0.00020522,2]
[378454145,1754871045529,-460.0,0.00020522,2]
[378454147,1754871045539,-460.0,0.00020522,2]
[378454149,1754871045548,-403.53,0.00020522,2]
[378454151,1754871045558,-334.953516,0.00020523,2]
[378454153,1754871045567,-460.0,0.00020527,2]
[378454155,1754871045576,-273.35,0.00020527,2]
[378454157,1754871045586,-460.0,0.00020527,2]
[378454159,1754871045596,-460.0,0.00020527,2]
[378454161,1754871045605,-460.0,0.00020527,2]
[378454163,1754871045614,-460.0,0.00020527,2]
[378454165,1754871045623,-460.0,0.00020527,2]
[378454167,1754871045633,-460.0,0.00020527,2]
[378454169,1754871045642,-460.0,0.00020527,2]
[378454171,1754871045652,-248.76778316,0.00020538,2]
[378454173,1754871045661,-460.0,0.00020625,2]
[378454175,1754871045670,-460.0,0.00020625,2]
[378454177,1754871045679,-460.0,0.00020625,2]
[378454179,1754871045688,-481.7513648,0.00020625,2]
[378454181,1754871045698,-460.0,0.00020625,2]
[378454183,1754871045707,-460.0,0.00020625,2]
[378454185,1754871045716,-460.0,0.00020625,2]
[378454187,1754871045726,-460.0,0.00020625,2]
[378454189,1754871045735,-297.78549221,0.00020625,2]
[378454191,1754871045745,-460.0,0.00020625,2]
[378454193,1754871045756,-467.23409118,0.00020625,2]
[378454195,1754871045765,-460.0,0.00020625,2]
[378454197,1754871045775,-460.0,0.00020625,2]
[378454199,1754871045784,-460.0,0.00020625,2]
[378454201,1754871045793,-460.0,0.00020625,2]
[378454203,1754871045802,-460.0,0.00020625,2]
[378454205,1754871045811,-460.0,0.00020625,2]
[378454207,1754871045820,-1491.96,0.00020625,2]
[378454208,1754871045830,-460.0,0.00020625,2]
[378454211,1754871045839,-460.0,0.00020625,2]
[378454213,1754871045848,-460.0,0.00020625,2]
[378454214,1754871045858,-460.0,0.00020625,2]
[378454216,1754871045867,-896.57,0.00020625,2]
[378454219,1754871045877,-460.0,0.00020626,2]
[378454221,1754871045886,-460.0,0.00020626,2]
[378454223,1754871045895,-460.0,0.00020626,2]
[378454224,1754871045904,-449.29947387,0.00020638,2]
[378454227,1754871045914,-20248.38776214,0.00020696,3]
[378454229,1754871045924,-12668.57659669,0.00020696,3]
[378454231,1754871045933,-461.62346162,0.00020696,3]
[378454232,1754871045943,-460.0,0.00020698,2]
[378454234,1754871045952,-432.54220936,0.00020785,2]
[378454237,1754871045962,-776.58,0.00020785,2]
[378454238,1754871045971,-514.52,0.00020785,2]
[378454241,1754871045980,-1130.59,0.00020785,2]
[378454242,1754871045990,-460.0,0.00020795,2]
[378454244,1754871045999,-460.0,0.00020795,2]
[378454247,1754871046009,-460.0,0.00020795,2]
[378454249,1754871046018,-333.15,0.00020795,2]
[378454251,1754871046027,-460.0,0.00020795,2]
[378454264,1754871046136,-460.0,0.00020795,2]
[378454266,1754871046146,-460.0,0.00020795,2]
[378454268,1754871046155,-575.89,0.00020795,2]
[378454270,1754871046165,-562.31,0.00020795,2]
[378454272,1754871046174,-517.76,0.00020795,2]
[378454274,1754871046183,-460.0,0.00020795,2]
[378454276,1754871046192,-460.0,0.00020795,2]
[378454278,1754871046202,-460.0,0.00020795,2]
[378454280,1754871046211,-369.17,0.00020795,2]
[378454282,1754871046220,-460.0,0.00020796,2]
[378454284,1754871046230,-460.0,0.00020796,2]
[378454286,1754871046239,-460.0,0.00020796,2]
[378454288,1754871046248,-460.0,0.00020801,2]
[378454290,1754871046257,-460.0,0.00020801,2]
[378454292,1754871046266,-460.0,0.00020801,2]
[378454294,1754871046276,-460.0,0.00020801,2]
[378454297,1754871046285,-460.0,0.00020801,2]
[378454299,1754871046294,-460.0,0.00020801,2]
[378454301,1754871046304,-460.0,0.00020801,2]
[378454303,1754871046313,-313.66190617,0.00020821,2]
[378454305,1754871046322,-500.0,0.00020821,2]
[378454306,1754871046331,-1000.0,0.00020821,2]
[378454308,1754871046341,-1000.0,0.00020821,2]
[378454310,1754871046349,-1000.0,0.00020821,2]
[378454313,1754871046359,-1000.0,0.00020821,2]
[378454314,1754871046372,-1000.0,0.00020821,2]
[378454317,1754871046382,-500.0,0.00020838,2]
[378454319,1754871046392,-409.93851068,0.00020881,2]
[378454320,1754871046401,-460.0,0.00020899,2]
[378454322,1754871046412,-460.0,0.00020899,2]
[378454326,1754871046422,-460.0,0.00020899,2]
[378454327,1754871046431,-460.0,0.00020899,2]
[378454330,1754871046441,-460.0,0.00020899,2]
[378454332,1754871046450,-274.3274644,0.00020899,2]
[378454334,1754871046459,-460.0,0.00020899,2]
[378454336,1754871046469,-460.0,0.00020899,2]
[378454337,1754871046478,-539.65635597,0.00020899,2]
[378454339,1754871046487,-460.0,0.00020899,2]
[378454342,1754871046498,-460.0,0.00020899,2]
[378454344,1754871046508,-460.0,0.00020899,2]
[378454345,1754871046518,-1491.96,0.00020899,2]
[378454348,1754871046528,-249.01,0.00020899,2]
[378454349,1754871046538,-460.0,0.00020899,2]
[378454351,1754871046547,-460.0,0.00020899,2]
[378454353,1754871046558,-460.0,0.00020899,2]
[378454355,1754871046568,-896.57,0.00020899,2]
[378454357,1754871046579,-460.0,0.000209,2]
[378454359,1754871046590,-460.0,0.000209,2]
[378454361,1754871046600,-460.0,0.000209,2]
[378454363,1754871046610,-460.0,0.0002097,2]
[378454365,1754871046620,-500.0,0.0002097,2]
[378454367,1754871046630,-500.0,0.0002097,2]
[378454368,1754871046639,-468.59425106,0.0002097,2]
[378454370,1754871046648,-460.0,0.0002097,2]
[378454372,1754871046657,-373.13,0.00020972,2]
[378454374,1754871046666,-776.58,0.00021059,2]
[378454376,1754871046675,-514.52,0.00021059,2]
[378454378,1754871046684,-1130.59,0.00021059,2]
[378454380,1754871046693,-160.0,0.0002106,2]
[378454382,1754871046702,-460.0,0.00021069,2]
[378454384,1754871046712,-460.0,0.00021069,2]
[378454386,1754871046721,-460.0,0.00021069,2]
[378454388,1754871046732,-460.0,0.00021069,2]
[378454390,1754871046742,-460.0,0.00021069,2]
[378454392,1754871046752,-460.0,0.00021069,2]
[378454394,1754871046761,-575.89,0.00021069,2]
[378454396,1754871046771,-460.0,0.00021069,2]
[378454398,1754871046780,-460.0,0.00021069,2]
[378454400,1754871046790,-460.0,0.0002107,2]
[378454402,1754871046799,-460.0,0.0002107,2]
[378454404,1754871046809,-460.0,0.0002107,2]
[378454406,1754871046818,-500.0,0.00021073,2]
[378454408,1754871046827,-500.0,0.00021073,2]
[378454410,1754871046837,-460.0,0.00021075,2]
[378454412,1754871046847,-460.0,0.00021075,2]
[378454414,1754871046856,-460.0,0.00021075,2]
[378454416,1754871046865,-460.0,0.00021075,2]
[378454418,1754871046874,-460.0,0.00021075,2]
[378454420,1754871046884,-460.0,0.00021075,2]
[378454422,1754871046894,-168.0,0.00021102,2]
[378454424,1754871046903,-168.0,0.00021109,2]
[378454426,1754871046912,-200.0,0.00021155,15]
[378454428,1754871046921,-300.0,0.00021155,15]
[378454430,1754871046931,-500.0,0.0002117,2]
[378454432,1754871046940,-160.0,0.0002117,2]
[378454434,1754871046949,-12668.57659669,0.0002117,2]
[378454436,1754871046959,-160.0,0.0002117,2]
[378454439,1754871046968,-160.0,0.0002117,2]
[378454441,1754871046977,-215.44987349,0.0002117,2]
[378454443,1754871046987,-500.0,0.00021172,2]
[378454445,1754871046996,-460.0,0.00021173,2]
[378454447,1754871047007,-460.0,0.00021173,2]
[378454448,1754871047017,-460.0,0.00021173,2]
[378454450,1754871047027,-460.0,0.00021173,2]
[378454452,1754871047036,-460.0,0.00021173,2]
[378454454,1754871047046,-460.0,0.00021173,2]
[378454456,1754871047055,-460.0,0.00021173,2]
[378454458,1754871047066,-578.45621324,0.00021173,2]
[378454460,1754871047075,-460.0,0.00021173,2]
[378454462,1754871047084,-460.0,0.00021173,2]
[378454464,1754871047094,-1491.96,0.00021173,2]
[378454466,1754871047103,-460.0,0.00021173,2]
[378454468,1754871047112,-460.0,0.00021173,2]
[378454470,1754871047122,-420.02236306,0.00021173,2]
[378454472,1754871047131,-151.0,0.00021173,2]
[378454474,1754871047140,-896.57,0.00021173,2]
[378454476,1754871047150,-460.0,0.00021174,2]
[378454478,1754871047159,-460.0,0.00021174,2]
[378454480,1754871047169,-460.0,0.00021174,2]
[378454482,1754871047178,-151.0,0.00021175,2]
[378454484,1754871047187,-269.413332,0.00021175,2]
[378454486,1754871047196,-160.0,0.00021178,2]
[378454488,1754871047205,-843.0869304,0.00021178,2]
[378454490,1754871047214,-160.0,0.00021178,2]
[378454492,1754871047223,-231.96268195,0.00021178,2]
[378454494,1754871047233,-461.62346162,0.00021178,2]
[378454496,1754871047242,-216.64838636,0.00021178,2]
[378454498,1754871047251,-160.0,0.00021178,2]
[378454500,1754871047261,-1797.1978955,0.00021188,2]
[378454502,1754871047270,-409.93851068,0.00021251,2]
[378454504,1754871047279,-500.0,0.0002128,2]
[378454506,1754871047288,-500.0,0.0002128,2]
[378454508,1754871047298,-168.0,0.00021322,2]
[378454510,1754871047307,-776.58,0.00021333,2]
[378454512,1754871047317,-514.52,0.00021333,2]
[378454514,1754871047326,-1130.59,0.00021333,2]
[378454516,1754871047336,-460.0,0.00021343,2]
[378454518,1754871047345,-460.0,0.00021343,2]
[378454520,1754871047354,-460.0,0.00021343,2]
[378454522,1754871047367,-460.0,0.00021343,2]
[378454524,1754871047376,-460.0,0.00021343,2]
[378454526,1754871047385,-575.89,0.00021343,2]
[378454527,1754871047394,-408.36,0.00021343,2]
[378454529,1754871047404,-460.0,0.00021343,2]
[378454531,1754871047414,-460.0,0.00021344,2]
[378454533,1754871047423,-460.0,0.00021344,2]
[378454535,1754871047432,-460.0,0.00021344,2]
[378454537,1754871047442,-500.0,0.00021347,2]
[378454539,1754871047452,-460.0,0.00021349,2]
[378454541,1754871047461,-460.0,0.00021349,2]
[378454543,1754871047471,-460.0,0.00021349,2]
[378454545,1754871047481,-151.0,0.00021349,2]
[378454547,1754871047491,-151.0,0.00021349,2]
[378454549,1754871047502,-151.0,0.00021349,2]
[378454551,1754871047511,-460.0,0.00021349,2]
[378454552,1754871047519,-1256.82829048,0.00021368,2]
[378454553,1754871047529,-1500.0,0.00021368,2]
[378454554,1754871047539,-1500.0,0.00021368,2]
[378454555,1754871047549,-1475.58606155,0.00021368,2]
[378454556,1754871047559,-1500.0,0.00021368,2]
[378454557,1754871047569,-1000.0,0.00021386,2]
[378454559,1754871047579,-460.0,0.00021447,2]
[378454560,1754871047589,-460.0,0.00021447,2]
[378454561,1754871047598,-460.0,0.00021447,2]
[378454563,1754871047607,-460.0,0.00021447,2]
[378454564,1754871047617,-460.0,0.00021447,2]
[378454566,1754871047627,-460.0,0.00021447,2]
[378454568,1754871047636,-460.0,0.00021447,2]
[378454569,1754871047646,-460.0,0.00021447,2]
[378454570,1754871047655,-574.71884404,0.00021447,2]
[378454571,1754871047665,-1491.96,0.00021447,2]
[378454572,1754871047674,-460.0,0.00021447,2]
[378454573,1754871047683,-460.0,0.00021447,2]
[378454574,1754871047692,-896.57,0.00021447,2]
[378454575,1754871047701,-460.0,0.00021448,2]
[378454576,1754871047711,-460.0,0.00021448,2]
[378454577,1754871047720,-460.0,0.00021448,2]
[378454578,1754871047728,-151.0,0.0002145,2]
[378454579,1754871047738,-151.0,0.0002145,2]
[378454580,1754871047747,-151.0,0.0002145,2]
[378454581,1754871047760,-151.0,0.0002145,2]
[378454582,1754871047770,-151.0,0.0002145,2]
[378454583,1754871047779,-151.0,0.0002145,2]
[378454584,1754871047789,-500.0,0.00021456,2]
[378454585,1754871047798,-2150.0,0.00021494,2]
[378454586,1754871047808,-168.0,0.00021529,2]
[378454587,1754871047817,-168.0,0.00021587,2]
[378454588,1754871047826,-776.58,0.00021607,2]
[378454589,1754871047835,-514.52,0.00021607,2]
[378454590,1754871047844,-1130.59,0.00021607,2]
[378454591,1754871047854,-151.0,0.00021608,2]
[378454592,1754871047863,-18337.33784578,0.00021608,2]
[378454593,1754871047872,-260.0,0.00021608,2]
[378454594,1754871047881,-1152.36,0.00021611,3]
[378454595,1754871047891,-576.18,0.00021611,3]
[378454596,1754871047900,-460.0,0.00021617,2]
[378454597,1754871047910,-460.0,0.00021617,2]
[378454598,1754871047919,-384.51348225,0.00021617,2]
[378454599,1754871047929,-460.0,0.00021617,2]
[378454600,1754871047939,-460.0,0.00021617,2]
[378454601,1754871047948,-575.89,0.00021617,2]
[378454602,1754871047958,-460.0,0.00021617,2]
[378454603,1754871047968,-460.0,0.00021618,2]
[378454604,1754871047977,-460.0,0.00021618,2]
[378454605,1754871047987,-460.0,0.00021618,2]
[378454606,1754871047997,-168.0,0.0002162,2]
[378454607,1754871048010,-409.93851068,0.00021622,2]
[378454608,1754871048019,-460.0,0.00021623,2]
[378454609,1754871048029,-460.0,0.00021623,2]
[378454610,1754871048039,-602.09,0.00021623,2]
[378454611,1754871048048,-460.0,0.00021623,2]
[378454612,1754871048058,-2567.68004757,0.00021655,2]
[378454613,1754871048067,-500.0,0.00021709,2]
[378454614,1754871048077,-447.9442818,0.0002172,2]
[378454615,1754871048086,-460.0,0.00021721,2]
[378454616,1754871048096,-460.0,0.00021721,2]
[378454617,1754871048105,-231.26232636,0.00021721,2]
[378454618,1754871048114,-460.0,0.00021721,2]
[378454619,1754871048124,-460.0,0.00021721,2]
[378454620,1754871048133,-460.0,0.00021721,2]
[378454621,1754871048143,-460.0,0.00021721,2]
[378454622,1754871048152,-460.0,0.00021721,2]
[378454623,1754871048162,-1491.96,0.00021721,2]
[378454624,1754871048171,-460.0,0.00021721,2]
[378454625,1754871048181,-460.0,0.00021721,2]
[378454626,1754871048190,-896.57,0.00021721,2]
[378454627,1754871048200,-460.0,0.00021722,2]
[378454628,1754871048209,-460.0,0.00021722,2]
[378454629,1754871048218,-460.0,0.00021722,2]
[378454630,1754871048228,-151.0,0.00021724,2]
[378454631,1754871048237,-151.0,0.00021724,2]
[378454632,1754871048247,-151.0,0.00021724,2]
[378454633,1754871048259,-151.0,0.00021724,2]
[378454634,1754871048268,-151.0,0.00021724,2]
[378454635,1754871048279,-151.4706338,0.00021724,2]
[378454636,1754871048297,-151.0,0.00021724,2]
[378454637,1754871048306,-198.35421511,0.00021724,2]
[378454638,1754871048315,-198.29692576,0.00021724,2]
[378454639,1754871048421,-198.64985678,0.00021724,2]
[378454640,1754871048430,-151.0,0.00021724,2]
[378454641,1754871048442,-314.246,0.00021744,2]
[378454642,1754871048451,-4039.6515696,0.00021749,2]
[378454643,1754871048460,-168.0,0.00021774,2]
[378454644,1754871048470,-500.0,0.00021776,2]
[378454645,1754871048480,-500.0,0.00021776,2]
[378454646,1754871048489,-500.0,0.00021776,2]
[378454647,1754871048499,-501.13655458,0.00021776,2]
[378454648,1754871048510,-511.35577896,0.00021776,2]
[378454649,1754871048519,-572.75123812,0.00021776,2]
[378454650,1754871048530,-500.0,0.00021848,2]
[378454651,1754871048539,-500.0,0.00021848,2]
[378454652,1754871048548,-1680.0,0.00021868,2]
[378454653,1754871048558,-776.58,0.00021881,2]
[378454654,1754871048568,-514.52,0.00021881,2]
[378454655,1754871048577,-1130.59,0.00021881,2]
[378454656,1754871048586,-593.34,0.00021891,2]
[378454657,1754871048596,-460.0,0.00021891,2]
[378454658,1754871048605,-460.0,0.00021891,2]
[378454659,1754871048614,-460.0,0.00021891,2]
[378454660,1754871048624,-575.89,0.00021891,2]
[378454661,1754871048633,-460.0,0.00021891,2]
[378454662,1754871048643,-460.0,0.00021892,2]
[378454663,1754871048652,-460.0,0.00021892,2]
[378454664,1754871048662,-575.90000014,0.00021892,2]
[378454665,1754871048672,-168.0,0.00021896,2]
[378454666,1754871048681,-460.0,0.00021897,2]
[378454667,1754871048690,-460.0,0.00021897,2]
[378454668,1754871048699,-460.0,0.00021897,2]
[378454669,1754871048709,-2000.0,0.00021916,2]
[378454670,1754871048718,-2000.0,0.00021916,2]
[378454672,1754871048727,-913.19332865,0.00021916,2]
[378454674,1754871048736,-500.0,0.00021917,2]
[378454676,1754871048746,-500.0,0.00021917,2]
[378454678,1754871048757,-151.0,0.00021917,2]
[378454680,1754871048766,-7702.69,0.00021917,2]
[378454682,1754871048776,-151.0,0.00021918,2]
[378454683,1754871048785,-1327.5605296,0.00021918,7]
[378454685,1754871048795,-516.30196721,0.00021934,2]
[378454686,1754871048804,-420.0,0.00021936,2]
[378454687,1754871048813,-4821.28272329,0.00021976,2]
[378454688,1754871048823,-168.0,0.00021985,2]
[378454689,1754871048833,-460.0,0.00021995,2]
[378454690,1754871048842,-460.0,0.00021995,2]
[378454691,1754871048852,-460.0,0.00021995,2]
[378454692,1754871048862,-460.0,0.00021995,2]
[378454693,1754871048871,-460.0,0.00021995,2]
[378454694,1754871048880,-460.0,0.00021995,2]
[378454695,1754871048889,-460.0,0.00021995,2]
[378454696,1754871048899,-1491.96,0.00021995,2]
[378454697,1754871048908,-460.0,0.00021995,2]
[378454698,1754871048917,-460.0,0.00021995,2]
[378454699,1754871048927,-896.57,0.00021995,2]
[378454700,1754871048936,-460.0,0.00021996,2]
[378454701,1754871048945,-460.0,0.00021996,2]
[378454702,1754871048955,-460.0,0.00021996,2]
[378454703,1754871048964,-245.0,0.00021998,2]
[378454704,1754871048973,-151.0,0.00021998,2]
[378454705,1754871048982,-151.0,0.00021998,2]
[378454706,1754871048991,-274.41890689,0.00021998,2]
[378454707,1754871049002,-895.1,0.00021999,2]
[378454708,1754871049011,-151.0,0.00022,9]
[378454709,1754871049020,-187.33493086,0.00022,2]
[378454710,1754871049029,-217.06,0.00022,2]
[378454711,1754871049038,-166.0,0.00022,2]
[378454712,1754871049047,-676.01115,0.00022,2]
[378454713,1754871049308,-151.0,0.00020239,2]
[378454714,1754871049322,-460.0,0.00020521,2]
[378454715,1754871049337,-521.38885,0.00022,2]
[378454718,1754871049351,-500.0,0.00022025,2]
[378454720,1754871049366,-141.3775056,0.00022025,7]
[378454722,1754871049381,-9.6224944,0.00022025,7]
[378454724,1754871049394,-151.0,0.00022025,7]
[378454726,1754871049407,-168.0,0.0002204,2]
[378454728,1754871049421,-500.0,0.00022069,2]
[378454729,1754871049434,-500.98868041,0.00022069,2]
[378454730,1754871049448,-500.0,0.00022069,2]
[378454731,1754871049461,-500.0,0.00022069,2]
[378454732,1754871049474,-500.0,0.00022069,2]
[378454733,1754871049487,-500.0,0.00022069,2]
[378454734,1754871049499,-500.0,0.00022069,2]
[378454735,1754871049513,-500.0,0.00022069,2]
[378454736,1754871049525,-500.0,0.00022069,2]
[378454737,1754871049537,-500.51509627,0.00022069,2]
[378454738,1754871049550,-500.0,0.00022069,2]
[378454739,1754871049563,-570.69811089,0.00022069,2]
[378454740,1754871049576,-500.0,0.00022069,2]
[378454741,1754871049586,-500.0,0.00022069,2]
[378454742,1754871049598,-500.0,0.00022069,2]
[378454743,1754871049609,-500.0,0.00022069,2]
[378454744,1754871049622,-645.24671407,0.00022069,2]
[378454745,1754871049635,-500.0,0.00022069,2]
[378454746,1754871049648,-500.0,0.00022069,2]
[378454747,1754871049660,-500.0,0.00022069,2]
[378454748,1754871049674,-500.0,0.00022069,2]
[378454749,1754871049687,-500.0,0.00022069,2]
[378454750,1754871049701,-500.0,0.00022069,2]
[378454751,1754871049713,-500.0,0.00022069,2]
[378454752,1754871049724,-500.0,0.00022069,2]
[378454753,1754871049734,-500.0,0.00022069,2]
[378454754,1754871049745,-500.0,0.00022069,2]
[378454755,1754871049758,-500.0,0.00022069,2]
[378454756,1754871049772,-500.0,0.00022069,2]